bitfinex/quotes_SOLUSD_20240821
["timestamp","ask_amount","ask_price","bid_price","bid_amount"]
[1724277795603,19.9156,143.98,143.9,6.4724]
[1724277795796,45.25098,143.97,143.9,6.4724]
[1724277796917,45.25098,143.97,143.9,19.4424]
[1724277797116,0.25098,143.97,143.9,20.83021754]
[1724277797317,45.0,143.98,143.92,12.97]
[1724277797523,45.12549,143.99,143.92,12.97]
[1724277797824,0.12549,143.98,143.92,12.97]
[1724277798400,7.24161239,144.01,143.93,15.857]
[1724277798713,7.24161239,144.01,143.94,6.2978]
[1724277799098,6.9438,144.02,143.94,19.2678]
[1724277799812,45.0,144.01,143.94,19.2678]
[1724277800513,0.25098,144.0,143.94,19.2678]
[1724277803105,0.25098,144.0,143.94,6.2978]
[1724277803106,8.93208361,144.0,143.94,6.2978]
[1724277803304,57.97,143.99,143.94,6.2978]
[1724277803525,45.0,143.99,143.94,6.2978]
[1724277803909,45.25098,144.0,143.94,6.2978]
[1724277806145,1.73674149,143.99,143.94,6.2978]
[1724277806316,45.25098,144.0,143.94,6.2978]
[1724277806509,1.73679898,143.99,143.94,6.2978]
[1724277808124,45.25098,144.0,143.94,6.2978]
[1724277810635,1.73679578,143.99,143.93,15.857]
[1724277810804,12.97,143.97,143.91,6.4974]
[1724277811004,12.97,143.95,143.91,6.4974]
[1724277811207,45.25098,143.94,143.91,6.4974]
[1724277812440,1.73734125,143.93,143.91,6.4974]
[1724277813817,45.0,143.94,143.91,6.4974]
[1724277814007,12.97,143.97,143.91,6.4974]
[1724277814209,45.25098,143.96,143.91,6.4974]
[1724277814508,0.25098,143.96,143.91,6.4974]
[1724277816829,45.0,143.97,143.91,19.4674]
[1724277817129,12.97,144.01,143.91,19.4674]
[1724277817337,1.73679283,144.0,143.91,19.4674]
[1724277818034,8.68119283,144.0,143.91,19.4674]
[1724277818435,45.25098,143.99,143.91,19.4674]
[1724277818737,1.73679321,143.98,143.91,19.4674]
[1724277819329,1.73679267,143.98,143.91,6.4974]
[1724277819533,0.12549,143.97,143.91,6.4974]
[1724277820216,0.12549,143.98,143.91,6.4974]
[1724277821539,1.86241415,143.98,143.91,6.4974]
[1724277824159,0.12549,143.98,143.91,6.4974]
[1724277828121,8.80791277,143.98,143.91,6.4974]
[1724277828325,45.12549,143.97,143.91,6.4974]
[1724277828620,1.8626231,143.96,143.91,6.4974]
[1724277828941,0.12549,143.95,143.91,6.4974]
[1724277829534,1.8627292,143.95,143.91,6.4974]
[1724277829734,0.12549,143.96,143.91,6.4974]
[1724277829927,0.25098,143.96,143.91,6.4974]
[1724277831622,1.73711212,143.95,143.91,6.4974]
[1724277831826,0.25098,143.96,143.91,6.4974]
[1724277832931,0.12549,143.96,143.91,6.4974]
[1724277833251,45.0,143.97,143.91,6.4974]
[1724277833546,45.12549,143.98,143.91,6.4974]
[1724277833750,0.12549,143.97,143.91,6.4974]
[1724277836130,45.12549,143.98,143.91,6.4974]
[1724277837534,0.12549,143.98,143.91,6.4974]
[1724277837848,0.25098,143.98,143.91,6.4974]
[1724277840247,0.12549,143.98,143.92,29.0675]
[1724277840437,45.0,143.99,143.92,29.0675]
[1724277840642,6.9436,144.02,143.92,29.0675]
[1724277840946,1.73655663,144.01,143.94,12.97]
[1724277841121,6.9436,144.02,143.94,12.97]
[1724277841325,6.9436,144.02,143.95,6.3185]
[1724277842462,45.12549,144.01,143.95,6.3185]
[1724277843339,0.12549,144.01,143.95,6.3185]
[1724277843537,0.25098,144.01,143.95,6.3185]
[1724277844147,14.95765217,144.01,143.95,6.3185]
[1724277844347,45.0,144.0,143.95,6.3185]
[1724277844539,1.73668599,143.99,143.95,6.3185]
[1724277848033,45.0,144.0,143.95,6.3185]
[1724277848354,0.25098,143.99,143.95,6.3185]
[1724277848740,14.95779948,143.99,143.95,6.3185]
[1724277848941,45.0,143.98,143.95,6.3185]
[1724277849160,1.73685159,143.97,143.92,16.0975]
[1724277850043,51.9454,143.98,143.92,16.0975]
[1724277850241,0.12549,143.96,143.91,6.5652]
[1724277850451,46.86273536,143.96,143.91,6.5652]
[1724277850670,0.12549,143.95,143.91,6.5652]
[1724277850841,1.86273801,143.95,143.91,6.5652]
[1724277851165,0.12549,143.95,143.91,6.5652]
[1724277856769,1.86273476,143.95,143.91,6.5652]
[1724277857174,0.12549,143.95,143.91,6.5652]
[1724277859452,0.12549,143.95,143.88,16.2718]
[1724277859453,21.77985677,143.95,143.88,16.2718]
[1724277859763,45.12549,143.94,143.88,16.2718]
[1724277859962,1.86293763,143.93,143.88,16.2718]
[1724277860148,1.73744726,143.92,143.88,16.2718]
[1724277861946,0.12549,143.91,143.88,16.2718]
[1724277862151,1.86309013,143.91,143.88,16.2718]
[1724277862854,0.12549,143.91,143.88,16.2718]
[1724277863843,45.0,143.92,143.88,16.2718]
[1724277864044,45.12549,143.93,143.88,16.2718]
[1724277870045,0.12549,143.93,143.88,16.2718]
[1724277870250,0.25098,143.93,143.88,16.2718]
[1724277875386,6.9467,143.96,143.88,16.2718]
[1724277875558,6.9457,143.98,143.89,12.97]
[1724277876778,0.12549,143.97,143.89,12.97]
[1724277877094,0.25098,143.97,143.89,12.97]
[1724277877257,45.25098,143.97,143.89,12.97]
[1724277877580,7.26178131,143.99,143.92,15.131]
[1724277877792,19.9151,143.99,143.92,15.131]
[1724277877995,12.97,143.97,143.92,15.131]
[1724277878310,1.73706453,143.96,143.92,15.131]
[1724277878663,45.0,143.96,143.92,15.131]
[1724277881282,14.20493216,144.01,143.92,28.101]
[1724277881488,0.12549,144.0,143.92,28.101]
[1724277882087,14.20493216,144.01,143.94,12.97]
[1724277882088,7.26093216,144.01,143.94,12.97]
[1724277882270,29.5226,144.03,143.94,12.97]
[1724277882474,36.78235721,144.03,143.94,12.97]
[1724277883278,12.97,144.01,143.93,6.3787]
[1724277883576,0.25098,144.0,143.93,6.3787]
[1724277883771,45.25098,144.0,143.93,6.3787]
[1724277890182,45.12549,144.0,143.94,12.97]
[1724277890499,12.97,144.02,143.94,12.97]
[1724277890500,45.0,144.01,143.94,12.97]
[1724277898582,1.86199892,144.0,143.94,12.97]
[1724277898786,0.25098,144.0,143.94,12.97]
[1724277899381,0.12549,144.0,143.94,12.97]
[1724277900010,6.945,143.99,143.93,6.3787]
[1724277900219,59.8322609,143.98,143.93,6.3787]
[1724277900514,12.97,143.96,143.92,15.131]
[1724277900721,45.25098,143.95,143.92,15.131]
[1724277901982,45.0,143.95,143.92,15.131]
[1724277902897,19.914,144.01,143.93,12.97]
[1724277903399,19.914,144.01,143.93,19.3641]
[1724277905491,0.12549,144.0,143.93,19.3641]
[1724277905702,45.25098,144.0,143.93,19.3641]
[1724277907709,45.0,143.99,143.93,19.3641]
[1724277907915,6.441,144.06,143.97,12.97]
[1724277907916,6.9425,144.04,143.97,12.97]
[1724277908296,6.9425,144.04,143.96,6.1575]
[1724277908492,19.9125,144.04,143.96,6.1575]
[1724277909204,0.25098,144.03,143.96,6.1575]
[1724277910591,45.25098,144.03,143.96,6.1575]
[1724277914308,12.97,144.0,143.96,6.1575]
[1724277914513,46.86215431,143.99,143.96,6.1575]
[1724277914698,1.73666214,143.98,143.96,6.1575]
[1724277916111,1.73666214,143.98,143.94,16.2014]
[1724277916319,0.25098,143.97,143.93,6.6258]
[1724277916612,1.98799854,143.97,143.93,6.6258]
[1724277917418,46.98799854,143.97,143.93,6.6258]
[1724277920621,66.90389854,143.97,143.91,15.4849]
[1724277920925,59.95799854,143.97,143.91,15.4849]
[1724277921125,46.98799854,143.97,143.91,15.4849]
[1724277922519,45.25098,143.97,143.91,15.4849]
[1724277923027,0.25098,143.97,143.91,28.4549]
[1724277925101,28.51018,143.97,143.86,22.8875]
[1724277925433,19.9169,143.95,143.86,22.8875]
[1724277925605,46.9884164,143.94,143.86,22.8875]
[1724277926621,45.25098,143.94,143.86,22.8875]
[1724277927311,52.19828,143.94,143.86,22.8875]
[1724277927522,1.73743463,143.93,143.86,22.8875]
[1724277927731,1.73743443,143.92,143.86,22.8875]
[1724277928516,46.9884141,143.94,143.86,22.8875]
[1724277929424,53.9359141,143.94,143.86,22.8875]
[1724277931834,6.9481,143.93,143.86,22.8875]
[1724277932132,45.25098,143.92,143.86,22.8875]
[1724277932735,45.0,143.91,143.86,22.8875]
[1724277933031,0.25098,143.92,143.86,22.8875]
[1724277933946,1.98850807,143.92,143.86,22.8875]
[1724277937244,0.25098,143.92,143.86,22.8875]
[1724277941035,1.98860244,143.92,143.86,22.8875]
[1724277942146,8.93700244,143.92,143.86,22.8875]
[1724277942351,57.97,143.91,143.82,34.2686]
[1724277942645,1.98890581,143.9,143.82,34.2686]
[1724277942815,1.73792061,143.89,143.82,34.2686]
[1724277944922,45.25098,143.9,143.82,34.2686]
[1724277945543,45.25098,143.9,143.84,12.97]
[1724277945857,45.0,143.89,143.84,12.97]
[1724277946016,45.0,143.91,143.84,12.97]
[1724277946214,45.0,143.92,143.84,12.97]
[1724277946427,1.8631026,143.91,143.84,12.97]
[1724277948244,0.12549,143.9,143.84,12.97]
[1724277948444,1.86327425,143.9,143.84,12.97]
[1724277949061,0.12549,143.89,143.82,34.2686]
[1724277949636,1.86334755,143.89,143.82,34.2686]
[1724277949846,0.12549,143.88,143.82,21.2986]
[1724277960237,15.4354,143.93,143.82,34.2686]
[1724277960441,12.97,143.91,143.82,34.2686]
[1724277960631,12.97,143.89,143.82,21.2986]
[1724277960832,1.73828206,143.88,143.82,21.2986]
[1724277961753,0.25098,143.87,143.82,21.2986]
[1724277962541,1.98922102,143.87,143.82,21.2986]
[1724277962957,0.25098,143.87,143.82,21.2986]
[1724277965447,12.97,143.84,143.78,21.5604]
[1724277965651,46.98968566,143.83,143.78,21.5604]
[1724277965878,14.70871193,143.82,143.78,21.5604]
[1724277966050,45.0,143.81,143.78,21.5604]
[1724277966366,1.73876881,143.8,143.78,21.5604]
[1724277967074,45.0,143.81,143.78,21.5604]
[1724277967570,1.73864221,143.8,143.78,21.5604]
[1724277970677,45.0,143.81,143.78,21.5604]
[1724277970891,6.9508,143.87,143.78,21.5604]
[1724277971084,22.7388,143.88,143.79,12.97]
[1724277971380,22.7388,143.88,143.78,21.5604]
[1724277971381,14.70827195,143.87,143.78,21.5604]
[1724277972547,0.12549,143.86,143.78,21.5604]
[1724277972855,45.25098,143.86,143.78,21.5604]
[1724277973985,45.0,143.86,143.79,12.97]
[1724277974166,45.0,143.87,143.79,12.97]
[1724277974366,7.26996765,143.9,143.81,12.97]
[1724277974669,27.18956765,143.9,143.81,12.97]
[1724277975773,45.25098,143.89,143.81,12.97]
[1724277976754,45.25098,143.89,143.82,16.1514]
[1724277976966,0.25098,143.89,143.82,16.1514]
[1724277977451,45.0,143.9,143.83,19.1488]
[1724277977652,19.9184,143.92,143.83,19.1488]
[1724277977854,6.80458443,143.95,143.85,12.97]
[1724277978057,12.97,143.95,143.85,12.97]
[1724277978259,36.5023,143.96,143.86,16.1514]
[1724277979492,12.97,143.92,143.86,16.1514]
[1724277979791,45.25098,143.91,143.86,16.1514]
[1724277980765,45.0,143.91,143.86,16.1514]
[1724277980973,27.18227578,143.97,143.87,12.97]
[1724277981158,27.18227578,143.97,143.88,6.1788]
[1724277982084,0.12549,143.96,143.88,6.1788]
[1724277982294,45.25098,143.96,143.88,6.1788]
[1724277983788,53.93489552,143.96,143.88,6.1788]
[1724277983996,21.65431552,143.95,143.88,6.1788]
[1724277984293,45.25098,143.94,143.88,6.1788]
[1724277984498,14.70760339,143.93,143.86,16.1514]
[1724277984714,7.26627578,143.97,143.86,16.1514]
[1724277984715,12.97,143.91,143.86,16.1514]
[1724277984919,45.25098,143.9,143.86,16.1514]
[1724277985095,45.25098,143.92,143.86,16.1514]
[1724277985815,45.0,143.91,143.86,16.1514]
[1724277986004,0.25098,143.92,143.86,29.1214]
[1724277986207,6.9468,143.96,143.88,12.97]
[1724277986583,6.9468,143.96,143.86,16.1514]
[1724277986584,14.70741338,143.95,143.86,29.1214]
[1724277987011,12.97,143.95,143.86,29.1214]
[1724277987601,0.25098,143.94,143.86,29.1214]
[1724277987804,45.25098,143.94,143.86,29.1214]
[1724277990610,1.73747006,143.93,143.86,29.1214]
[1724277990813,0.12549,143.92,143.86,16.1514]
[1724277991016,0.25098,143.92,143.86,16.1514]
[1724277992105,0.25098,143.92,143.86,29.1214]
[1724277992506,0.25098,143.93,143.86,29.1214]
[1724277995700,1.98840707,143.93,143.86,29.1214]
[1724277996814,0.25098,143.93,143.86,29.1214]
[1724277998531,0.25098,143.93,143.89,6.2592]
[1724277998741,0.12549,143.93,143.89,6.2592]
[1724278002663,1.8628041,143.93,143.89,6.2592]
[1724278003219,0.12549,143.92,143.89,6.2592]
[1724278003427,0.12549,143.92,143.86,16.1514]
[1724278003632,1.86309453,143.92,143.86,22.5692]
[1724278003860,0.12549,143.91,143.86,22.5692]
[1724278004055,0.12549,143.91,143.86,35.5392]
[1724278004231,45.0,143.94,143.86,35.5392]
[1724278004433,0.25098,143.93,143.86,35.5392]
[1724278005035,0.12549,143.93,143.86,35.5392]
[1724278006159,45.0,143.94,143.86,35.5392]
[1724278006345,45.12549,143.95,143.86,35.5392]
[1724278006546,0.12549,143.94,143.86,35.5392]
[1724278011050,16.4181,143.99,143.89,16.5881]
[1724278011356,20.0,143.98,143.91,6.4264]
[1724278011556,26.9454,143.98,143.91,6.4264]
[1724278011966,6.9459,143.97,143.91,6.4264]
[1724278012133,1.73708429,143.96,143.91,6.4264]
[1724278012334,1.73708583,143.95,143.91,6.4264]
[1724278013659,0.12549,143.94,143.91,6.4264]
[1724278015659,0.25098,143.94,143.91,6.4264]
[1724278019178,8.93566355,143.94,143.89,16.5881]
[1724278019390,45.0,143.93,143.89,16.5881]
[1724278019675,0.25098,143.92,143.89,16.5881]
[1724278021665,6.9464,143.96,143.89,16.5881]
[1724278021971,6.9464,143.96,143.9,12.97]
[1724278022575,6.9464,143.96,143.89,16.5881]
[1724278023349,45.25098,143.95,143.89,16.5881]
[1724278023556,26.9454,143.98,143.9,12.97]
[1724278024564,20.0,143.98,143.9,12.97]
[1724278024875,26.9454,143.98,143.9,12.97]
[1724278025168,45.25098,143.97,143.9,12.97]
[1724278031974,45.25098,143.97,143.91,6.2687]
[1724278032893,7.26517741,143.99,143.94,12.97]
[1724278033184,6.9441,144.01,143.94,12.97]
[1724278033882,6.9441,144.01,143.95,6.2687]
[1724278034567,6.9436,144.02,143.95,6.2687]
[1724278034889,20.2327285,144.04,143.95,6.2687]
[1724278034890,6.9431,144.03,143.96,12.97]
[1724278035385,8.99913793,144.04,143.96,12.97]
[1724278035386,8.68006627,144.02,143.96,12.97]
[1724278035578,1.73646814,144.01,143.96,12.97]
[1724278035967,6.9436,144.02,143.96,12.97]
[1724278036164,45.25098,144.01,143.96,12.97]
[1724278037886,1.73646469,144.0,143.95,6.2687]
[1724278038086,0.12549,143.99,143.95,6.2687]
[1724278038993,45.12549,144.01,143.96,12.97]
[1724278039191,45.0,144.0,143.98,12.97]
[1724278039394,0.12549,144.01,143.98,12.97]
[1724278039565,0.25098,144.01,143.98,12.97]
[1724278040088,45.0,144.02,143.98,12.97]
[1724278040089,6.942,144.05,143.98,12.97]
[1724278042191,7.26108891,144.07,144.0,12.97]
[1724278042581,7.26108891,144.07,144.04,12.97]
[1724278042893,8.67551575,144.09,144.02,12.97]
[1724278043095,8.67624351,144.08,144.02,12.97]
[1724278043400,8.67624351,144.08,144.01,21.6416]
[1724278043401,6.9406,144.08,144.01,21.6416]
[1724278043897,0.12549,144.07,144.01,21.6416]
[1724278044100,8.80238929,144.07,144.01,21.6416]
[1724278044717,45.12549,144.06,144.01,21.6416]
[1724278044903,0.12549,144.05,144.01,21.6416]
[1724278046325,14.83150272,144.05,143.98,15.1149]
[1724278046495,45.12549,144.04,143.98,15.1149]
[1724278046704,1.86163239,144.03,143.98,15.1149]
[1724278047102,0.12549,144.03,143.98,15.1149]
[1724278048185,0.12549,144.03,143.98,28.0849]
[1724278049090,45.12549,144.04,143.98,28.0849]
[1724278049292,45.0,144.03,143.98,28.0849]
[1724278049485,0.12549,144.04,143.98,28.0849]
[1724278049687,0.25098,144.04,143.98,28.0849]
[1724278051220,1.98711297,144.04,143.98,28.0849]
[1724278052293,0.25098,144.04,143.98,28.0849]
[1724278055196,45.0,144.05,143.98,28.0849]
[1724278055401,45.12549,144.06,143.98,28.0849]
[1724278055603,0.12549,144.05,143.98,28.0849]
[1724278056207,1.86136483,144.05,143.98,28.0849]
[1724278058406,0.12549,144.04,143.98,28.0849]
[1724278060527,45.12549,144.04,143.98,28.0849]
[1724278060829,1.73604592,144.03,143.98,28.0849]
[1724278061439,1.73605261,144.02,143.98,15.1149]
[1724278061599,0.25098,144.01,143.98,15.1149]
[1724278061795,0.12549,144.01,143.98,15.1149]
[1724278062017,45.0,144.02,143.98,15.1149]
[1724278062304,45.0,144.03,143.98,15.1149]
[1724278062522,0.12549,144.02,143.98,15.1149]
[1724278062724,0.12549,144.02,143.98,28.0849]
[1724278062905,45.0,144.03,143.98,28.0849]
[1724278063112,45.12549,144.04,143.98,28.0849]
[1724278063421,0.12549,144.03,143.98,28.0849]
[1724278064209,1.98706685,144.03,143.98,15.1149]
[1724278064433,14.95706685,144.03,143.97,6.5267]
[1724278064641,45.0,144.02,143.97,6.5267]
[1724278064934,1.98748151,144.01,143.97,6.5267]
[1724278065136,0.25098,144.01,143.97,6.5267]
[1724278065502,0.12549,144.01,143.97,6.5267]
[1724278066509,1.86182517,144.01,143.97,6.5267]
[1724278066945,0.12549,144.01,143.97,6.5267]
[1724278067819,1.98742026,144.01,143.97,6.5267]
[1724278068938,1.98742026,144.01,143.94,15.4807]
[1724278070619,8.93142026,144.01,143.94,15.4807]
[1724278070832,45.0,144.0,143.94,15.4807]
[1724278071037,1.98766606,143.99,143.94,15.4807]
[1724278071245,1.73678176,143.98,143.94,15.4807]
[1724278071431,46.73678176,143.98,143.94,15.4807]
[1724278071748,53.68218176,143.98,143.93,6.0022]
[1724278071919,7.19688,143.97,143.93,6.0022]
[1724278072118,45.0,143.96,143.91,16.4991]
[1724278072421,0.25098,143.97,143.91,29.4691]
[1724278073240,0.12549,143.97,143.91,29.4691]
[1724278073552,0.12549,143.97,143.93,12.97]
[1724278075241,0.12549,143.97,143.91,29.4691]
[1724278075747,0.12549,143.97,143.93,12.97]
[1724278075948,45.0,143.98,143.93,12.97]
[1724278076133,45.0,143.98,143.91,29.4691]
[1724278077638,1.86235812,143.97,143.91,29.4691]
[1724278077851,0.12549,143.97,143.93,12.97]
[1724278078057,0.12549,143.98,143.93,12.97]
[1724278081147,45.0,143.99,143.93,12.97]
[1724278084242,45.0,143.99,143.92,6.0673]
[1724278084548,0.12549,143.98,143.92,6.0673]
[1724278085341,45.0,143.99,143.93,12.97]
[1724278088574,45.0,143.99,143.95,12.97]
[1724278090372,45.0,143.99,143.93,12.97]
[1724278090544,45.0,143.99,143.92,19.0373]
[1724278091555,45.0,143.99,143.94,12.97]
[1724278091754,45.0,143.99,143.96,12.97]
[1724278092188,7.26235612,144.02,143.96,12.97]
[1724278092365,36.4568,144.04,143.96,12.97]
[1724278092553,16.5442,144.04,143.96,12.97]
[1724278092759,16.5442,144.04,143.98,12.97]
[1724278095371,45.0,144.03,143.98,12.97]
[1724278096698,45.0,144.03,143.93,23.9273406]
[1724278096866,1.86147605,144.02,143.95,12.97]
[1724278097058,0.25098,144.02,143.95,12.97]
[1724278097261,0.25098,144.02,143.96,20.0]
[1724278100876,0.25098,144.02,143.97,12.97]
[1724278106993,1.98720667,144.02,143.95,12.97]
[1724278107193,0.25098,144.02,143.95,12.97]
[1724278108269,0.25098,144.02,143.97,12.97]
[1724278108794,0.12549,144.02,143.97,12.97]
[1724278108977,51.4405,144.03,143.93,15.1593]
[1724278108978,45.0,144.03,143.99,12.97]
[1724278110181,16.5442,144.04,143.99,12.97]
[1724278111801,45.0,144.03,143.99,12.97]
[1724278117411,46.73588829,144.03,143.97,12.97]
[1724278120221,0.12549,144.02,143.97,12.97]
[1724278120423,0.25098,144.02,143.95,12.97]
[1724278120597,0.25098,144.02,143.96,20.0]
[1724278122199,1.98716863,144.02,143.95,12.97]
[1724278122400,8.93076863,144.02,143.95,12.97]
[1724278122599,45.0,144.01,143.93,28.1293]
[1724278122795,1.98751261,144.0,143.93,12.97]
[1724278123698,15.6313,143.99,143.93,12.97]
[1724278123899,46.98763931,143.98,143.9,16.2349]
[1724278124094,46.98763931,143.98,143.92,12.97]
[1724278125416,45.25098,143.98,143.9,16.2349]
[1724278125619,1.73666107,143.97,143.89,6.1505]
[1724278125816,1.73666107,143.97,143.91,12.97]
[1724278126714,45.25098,143.98,143.91,12.97]
[1724278132124,45.25098,143.98,143.93,12.97]
[1724278138251,45.25098,143.98,143.89,6.1505]
[1724278138459,45.25098,143.98,143.92,12.97]
[1724278141933,6.0003,143.97,143.88,8.76757683]
[1724278142139,6.0003,143.97,143.9,12.97]
[1724278142140,46.9880327,143.96,143.9,12.97]
[1724278142850,45.25098,143.96,143.9,12.97]
[1724278143448,1.73703735,143.95,143.9,12.97]
[1724278143851,45.25098,143.96,143.92,12.97]
[1724278144165,45.12549,143.96,143.92,12.97]
[1724278144968,45.0,143.96,143.94,12.97]
[1724278149580,45.0,143.96,143.92,12.97]
[1724278150068,45.0,143.96,143.88,28.76757683]
[1724278150278,45.0,143.96,143.92,12.97]
[1724278151542,15.6313,143.99,143.95,12.97]
[1724278151743,15.6313,143.99,143.97,12.97]
[1724278151972,16.3199,144.02,143.97,12.97]
[1724278152169,23.2635,144.02,143.92,9.17036016]
[1724278152369,23.2635,144.02,143.94,12.97]
[1724278152550,16.3199,144.02,143.96,12.97]
[1724278153359,16.3199,144.02,143.98,12.97]
[1724278154658,45.0,144.01,143.98,12.97]
[1724278155361,16.3199,144.02,143.98,12.97]
[1724278156879,45.0,144.01,143.98,12.97]
[1724278157688,45.0,144.01,143.92,20.0]
[1724278157866,45.0,144.01,143.97,12.97]
[1724278159687,46.73611551,144.01,143.91,16.58479]
[1724278159866,46.73611551,144.01,143.95,12.97]
[1724278160270,45.0,144.01,143.95,12.97]
[1724278160585,45.0,144.01,143.97,12.97]
[1724278161284,45.0,144.01,143.92,20.0]
[1724278161491,45.0,144.01,143.98,12.97]
[1724278163284,45.0,144.01,143.94,29.17036016]
[1724278163584,45.0,144.01,143.98,12.97]
[1724278164795,45.0,144.01,143.94,29.17036016]
[1724278164992,45.0,144.01,143.98,12.97]
[1724278165573,45.0,144.01,143.96,12.97]
[1724278166492,45.0,144.01,143.98,12.97]
[1724278176098,15.4605,144.05,144.0,12.97]
[1724278177297,45.0,144.04,144.0,12.97]
[1724278177907,46.735863,144.04,143.98,12.97]
[1724278178281,45.0,144.04,143.98,12.97]
[1724278179906,45.0,144.04,143.94,27.3599]
[1724278179907,0.25098,144.03,143.97,12.97]
[1724278180092,44.37647,144.04,143.97,12.97]
[1724278182186,0.25098,144.03,143.97,12.97]
[1724278190726,0.12549,144.03,143.97,12.97]
[1724278190905,15.4605,144.05,143.99,12.97]
[1724278191108,15.4605,144.05,144.01,12.97]
[1724278192533,13.89965036,144.07,144.03,12.97]
[1724278192837,6.6478,144.07,144.05,12.97]
[1724278193324,16.622,144.09,144.05,12.97]
[1724278194418,16.622,144.09,144.0,4.93077911]
[1724278194622,16.622,144.09,144.0,24.93077911]
[1724278194830,16.622,144.09,144.04,12.97]
[1724278195718,45.0,144.08,144.04,12.97]
[1724278200441,45.0,144.08,144.0,20.0]
[1724278200647,45.0,144.08,144.03,12.97]
[1724278203455,45.0,144.08,144.05,12.97]
[1724278209065,1.73525678,144.07,144.0,36.108]
[1724278209254,45.0,144.08,144.02,12.97]
[1724278210292,45.0,144.08,144.0,36.108]
[1724278210453,1.86094692,144.07,144.02,12.97]
[1724278210763,1.86110519,144.07,144.01,12.97]
[1724278211086,0.12549,144.07,144.01,12.97]
[1724278211386,1.86110289,144.07,144.01,12.97]
[1724278211683,0.12549,144.07,144.01,12.97]
[1724278212081,1.86109632,144.07,144.01,12.97]
[1724278213185,1.86109632,144.07,143.98,9.17036016]
[1724278213353,0.12549,144.06,143.96,15.3441]
[1724278213559,46.86131201,144.06,143.99,12.97]
[1724278213761,0.12549,144.05,143.99,12.97]
[1724278214078,16.4494,144.04,143.97,14.0989872]
[1724278214384,45.0,144.03,143.98,12.97]
[1724278215572,45.0,144.03,143.98,22.14036016]
[1724278215957,46.73597691,144.03,143.98,9.17036016]
[1724278216208,46.73597691,144.03,143.92,27.2441376]
[1724278216209,0.12549,144.02,143.96,12.97]
[1724278216574,0.25098,144.02,143.96,12.97]
[1724278216974,0.25098,144.02,143.96,22.14036016]
[1724278217697,1.73637654,144.01,143.96,22.14036016]
[1724278218188,0.25098,144.02,143.96,22.14036016]
[1724278219682,0.25098,144.02,143.96,12.97]
[1724278220084,1.7363732,144.01,143.96,12.97]
[1724278220891,0.25098,144.02,143.96,12.97]
[1724278222697,7.19448,144.02,143.96,12.97]
[1724278222873,46.73645608,144.01,143.96,12.97]
[1724278223192,15.5874,143.99,143.94,12.97]
[1724278223381,46.73654976,143.98,143.94,17.90580257]
[1724278223568,46.73654976,143.98,143.94,12.97]
[1724278224062,46.73654976,143.98,143.94,17.90580257]
[1724278224467,46.73654976,143.98,143.94,12.97]
[1724278225162,45.0,143.98,143.94,12.97]
[1724278225366,45.0,143.98,143.94,17.90580257]
[1724278225869,45.0,143.98,143.94,12.97]
[1724278231301,45.0,143.98,143.93,9.17036016]
[1724278231479,45.0,143.98,143.94,12.97]
[1724278231793,1.73654992,143.97,143.93,9.17036016]